bitfinex/quotes_ETHUSD_20240603
["timestamp","ask_amount","ask_price","bid_price","bid_amount"]
[1717400274276,2.61521,3823.8,3823.5,7.93482129]
[1717400274483,0.75,3823.6,3823.5,7.93482129]
[1717400278132,0.75,3823.6,3823.5,7.93482129]
[1717400288933,2.61521,3823.8,3823.5,10.26762129]
[1717400289235,0.75,3823.7,3823.5,10.26762129]
[1717400290832,0.73074935,3823.7,3823.6,1.02676213]
[1717400291020,0.73074935,3823.7,3823.6,1.08922565]
[1717400294716,2.61498,3824.2,3823.6,1.08922565]
[1717400295133,0.75,3824.0,3823.6,1.08922565]
[1717400295349,2.61498,3824.2,3823.6,1.08922565]
[1717400295524,0.75,3824.1,3823.7,0.44719679]
[1717400295939,0.75,3824.1,3823.8,0.06238862]
[1717400296451,0.75,3824.1,3823.9,0.06235117]
[1717400296656,0.75,3824.1,3823.7,0.44719679]
[1717400296869,0.75,3824.1,3824.0,0.06231373]
[1717400297154,0.75,3824.1,3823.7,0.44719679]
[1717400297325,0.75,3824.1,3824.0,0.06231373]
[1717400297525,0.75,3824.1,3823.8,1.02676213]
[1717400297735,0.75,3824.1,3824.0,0.06231373]
[1717400297937,0.75,3824.1,3823.9,0.06235117]
[1717400298134,0.75,3824.1,3824.0,0.06231373]
[1717400298553,0.75,3824.1,3823.5,10.2051]
[1717400298715,1.31537894,3824.1,3824.0,0.06231373]
[1717400298917,2.61507,3824.0,3823.5,10.2051]
[1717400299119,2.61507,3824.0,3823.5,7.8723]
[1717400299779,2.61527,3823.7,3823.5,7.8723]
[1717400300257,0.56544179,3823.6,3823.5,7.8723]
[1717400300982,0.75,3824.1,3823.5,7.8723]
[1717400301260,2.6142,3825.3,3824.0,2.61506]
[1717400301415,0.26142,3825.2,3824.1,2.4615]
[1717400301616,3.235,3824.8,3823.6,5.07682]
[1717400301818,3.235,3824.8,3823.6,2.4615]
[1717400301819,2.6146,3824.7,3823.6,2.4615]
[1717400302124,4.4896,3824.7,3823.5,7.8723]
[1717400302517,0.75,3824.0,3823.5,7.8723]
[1717400303558,0.75,3824.0,3823.6,0.06030612]
[1717400303726,0.75,3824.0,3823.7,7.8719]
[1717400304051,0.75,3824.0,3823.8,0.06023123]
[1717400304215,0.75,3824.0,3823.9,7.8715]
[1717400304412,0.75,3824.0,3823.9,7.93169378]
[1717400308267,1.32543,3824.0,3823.9,7.93169378]
[1717400308556,1.87543,3824.0,3823.9,7.8715]
[1717400308861,1.87543,3824.0,3823.9,7.93169378]
[1717400309058,1.3,3824.0,3823.9,7.93169378]
[1717400309469,1.3,3824.0,3823.9,6.9806989]
[1717400311098,1.86546675,3824.0,3823.9,6.70801534]
[1717400311264,4.86546675,3824.0,3823.9,4.35029321]
[1717400311472,8.47690553,3824.0,3823.9,4.04009943]
[1717400312863,8.47690553,3824.0,3823.9,3.77909943]
[1717400313175,8.22144343,3824.0,3823.9,3.70588443]
[1717400313673,16.32305543,3824.0,3823.9,3.70588443]
[1717400313863,16.32305543,3824.0,3823.9,3.44588443]
[1717400314714,15.40569443,3824.0,3823.9,3.44588443]
[1717400314863,13.37009643,3824.0,3823.9,3.44588443]
[1717400315062,8.22144343,3824.0,3823.9,3.44588443]
[1717400316514,8.16560113,3824.0,3823.9,3.44588443]
[1717400317069,7.61560113,3824.0,3823.9,3.44588443]
[1717400318389,8.16560113,3824.0,3823.9,3.44588443]
[1717400324314,11.62459413,3824.0,3823.9,3.44588443]
[1717400325988,10.09728613,3824.0,3823.9,3.44588443]
[1717400326190,9.85130113,3824.0,3823.9,3.44588443]
[1717400326429,9.85130113,3824.0,3822.7,2.4582]
[1717400326733,4.97722686,3823.9,3822.7,2.4582]
[1717400326883,0.75,3822.8,3822.7,2.4582]
[1717400329388,0.75,3822.8,3822.7,2.4582]
[1717400333330,0.75,3822.8,3822.2,2.3528]
[1717400333744,0.75,3822.8,3822.3,0.05749135]
[1717400334097,0.75,3822.8,3822.2,2.3528]
[1717400334331,0.75,3822.8,3822.4,0.05745388]
[1717400334534,0.75,3822.8,3822.3,0.55440035]
[1717400334739,0.75,3822.8,3822.5,0.0574164]
[1717400334904,0.75,3822.8,3822.4,0.05745388]
[1717400335244,0.75,3822.8,3822.3,0.496909]
[1717400335538,0.75,3822.8,3822.5,0.0574164]
[1717400335845,2.61596,3822.7,3822.4,0.05745388]
[1717400336005,2.61596,3822.7,3822.2,2.3528]
[1717400336330,2.61596,3822.7,3822.3,0.05749135]
[1717400336544,2.61596,3822.7,3822.2,2.3528]
[1717400336746,2.61596,3822.7,3822.4,0.05745388]
[1717400337076,2.61596,3822.7,3822.3,0.05749135]
[1717400337210,2.61596,3822.7,3822.5,0.0574164]
[1717400337544,2.61596,3822.7,3822.2,2.3528]
[1717400337843,2.61596,3822.7,3822.6,0.05737893]
[1717400338009,3.16596,3822.7,3822.2,2.3528]
[1717400338207,2.61596,3822.7,3822.3,0.05749135]
[1717400338549,2.61596,3822.7,3822.2,2.3528]
[1717400338707,2.61596,3822.7,3822.4,0.05745388]
[1717400338906,2.61596,3822.7,3822.2,2.3528]
[1717400339105,2.61596,3822.7,3822.5,0.0574164]
[1717400339305,0.56560314,3822.6,3822.2,2.3528]
[1717400339851,2.6161,3822.5,3821.8,2.4467]
[1717400340024,2.6161,3822.5,3821.8,2.953027]
[1717400340835,0.75,3822.8,3821.8,2.4467]
[1717400341041,2.61644,3822.0,3821.4,2.4448]
[1717400341548,0.75,3821.7,3821.4,2.4448]
[1717400344866,7.28,3822.3,3821.4,2.4448]
[1717400345029,0.75,3822.0,3821.5,0.56441338]
[1717400345226,0.75,3822.0,3821.5,0.506169]
[1717400350927,7.28,3822.3,3821.5,0.506169]
[1717400351129,0.75,3822.1,3821.5,0.506169]
[1717400351751,7.28,3822.3,3821.5,0.506169]
[1717400351952,0.75,3822.2,3821.5,0.506169]
[1717400352150,0.75,3822.2,3821.4,2.4448]
[1717400352151,0.75,3822.2,3821.6,0.5567859]
[1717400352368,0.75,3822.2,3821.6,0.61499279]
[1717400357327,0.75,3822.2,3821.6,3.23167279]
[1717400363350,0.75,3822.2,3821.6,0.05820689]
[1717400363532,3.9848,3822.2,3821.4,2.4448]
[1717400364095,6.60115,3822.2,3821.4,2.4448]
[1717400364241,6.60115,3822.2,3821.5,0.05822595]
[1717400365735,6.60115,3822.2,3821.4,2.4448]
[1717400365941,6.60115,3822.2,3821.5,0.05826812]
[1717400369445,0.781,3822.0,3821.5,0.05826812]
[1717400369646,3.39749,3822.0,3821.1,2.3505]
[1717400369862,3.39749,3822.0,3821.6,0.05823062]
[1717400369863,0.781,3821.8,3821.6,0.05823062]
[1717400370076,0.781,3821.8,3821.0,2.6171]
[1717400370380,3.2038,3822.2,3819.8,7.73963524]
[1717400370381,0.781,3821.2,3821.1,0.05845236]
[1717400370688,0.781,3821.2,3821.1,7.90945236]
[1717400370994,0.781,3821.2,3821.1,5.50576338]
[1717400370995,3.8577,3821.2,3821.1,5.50576338]
[1717400371177,8.88261571,3821.2,3818.9,9.89851]
[1717400371381,8.88261571,3821.2,3819.1,0.05537226]
[1717400371382,0.781,3820.0,3819.1,0.05537226]
[1717400371697,0.781,3820.2,3819.1,0.05537226]
[1717400371984,0.781,3820.2,3819.2,8.43744823]
[1717400372386,0.75,3820.0,3819.3,0.05529719]
[1717400381405,2.61882,3818.6,3817.0,2.61984]
[1717400381553,2.61949,3817.6,3815.7,2.6207]
[1717400381759,1.877,3817.5,3815.7,2.6207]
[1717400381971,2.61949,3817.6,3815.8,7.8604]
[1717400382165,2.61949,3817.6,3815.9,2.62055]
[1717400382378,0.75,3817.4,3816.1,2.62045]
[1717400382590,0.75,3817.4,3816.2,8.909405]
[1717400384005,2.61969,3817.3,3816.2,8.909405]
[1717400384678,2.61898,3818.3,3816.9,2.61991]
[1717400384997,2.61898,3818.3,3817.2,1.877]
[1717400385161,2.61898,3818.3,3817.3,0.1877]
[1717400385694,2.61868,3818.8,3817.4,2.61955]
[1717400386023,2.61868,3818.8,3817.6,2.61942]
[1717400386178,2.61868,3818.8,3817.6,4.49642]
[1717400386510,2.61868,3818.8,3817.8,2.6193]
[1717400386713,2.61835,3819.2,3817.8,2.6193]
[1717400386935,0.75,3819.0,3817.9,0.05237149]
[1717400387222,0.75,3819.0,3818.0,0.31213135]
[1717400387379,0.75,3819.0,3818.1,0.05237122]
[1717400387565,0.75,3819.0,3818.0,0.31213135]
[1717400387762,2.61856,3818.9,3818.0,0.31213135]
[1717400389611,2.61856,3818.9,3818.1,0.05237113]
[1717400389822,2.61856,3818.9,3818.0,0.31213135]
[1717400390030,2.61856,3818.9,3818.1,0.29838025]
[1717400390181,2.61856,3818.9,3818.2,0.05237114]
[1717400390384,9.8983,3819.3,3818.3,0.04647994]
[1717400390695,0.75,3819.1,3818.3,0.0523695]
[1717400391018,0.75,3819.1,3818.4,0.04644238]
[1717400391426,0.75,3819.1,3818.2,0.261905]
[1717400391637,0.75,3819.1,3818.5,0.04640483]
[1717400391926,0.75,3819.1,3818.2,0.261905]
[1717400392240,9.8983,3819.3,3818.4,2.61887]
[1717400392385,9.8983,3819.3,3818.5,0.53338099]
[1717400392386,7.28,3819.3,3818.5,0.53338099]
[1717400392710,7.28,3819.3,3818.6,0.04625628]
[1717400392910,9.89802,3819.7,3818.6,0.04625628]
[1717400393104,0.75,3819.4,3818.6,0.55380701]
[1717400393810,9.89802,3819.7,3818.7,2.61868]
[1717400394030,0.75,3819.6,3818.7,2.61868]
[1717400394230,0.75,3819.6,3818.8,0.04615215]
[1717400397346,0.75,3819.6,3818.9,2.61853]
[1717400397552,7.28,3819.7,3819.0,0.31244235]
[1717400397706,8.03,3819.7,3819.0,0.31244235]
[1717400398147,8.03,3819.7,3819.1,0.05236006]
[1717400398309,8.03,3819.7,3819.2,0.04589906]
[1717400398513,8.03,3819.7,3819.2,0.09825905]
[1717400398701,0.75,3819.7,3819.2,0.09825905]
[1717400399655,2.61773,3820.1,3819.2,0.09825905]
[1717400399805,0.75,3819.8,3819.2,0.09825905]
[1717400400530,0.75,3819.8,3819.2,0.04589906]
[1717400400736,0.75,3819.8,3819.0,0.26646822]
[1717400400944,0.75,3819.8,3819.1,0.04593659]
[1717400402661,2.61773,3820.1,3819.2,2.61832]
[1717400402842,0.75,3819.9,3819.2,2.91139248]
[1717400403053,0.75,3819.9,3819.3,0.04586152]
[1717400403351,7.28,3820.2,3819.4,2.6182]
[1717400403570,8.03,3820.2,3819.5,0.05235399]
[1717400403713,8.03,3820.2,3819.5,0.09814044]
[1717400404529,8.03,3820.2,3819.5,0.04578645]
[1717400404718,1.814748,3820.2,3819.5,0.04578645]
[1717400404912,0.75,3820.2,3819.5,0.04578645]
[1717400406766,3.36771,3820.2,3819.5,0.04578645]
[1717400406921,3.36771,3820.2,3819.0,2.61846]
[1717400407122,3.36771,3820.2,3819.6,0.04538475]
[1717400407352,3.36771,3820.2,3819.0,2.61846]
[1717400407567,3.36771,3820.2,3819.0,2.880306]
[1717400407770,3.36771,3820.2,3819.1,0.04555659]
[1717400410053,3.36771,3820.2,3819.2,2.6183]
[1717400410238,0.75,3820.2,3819.5,2.61812]
[1717400410564,0.75,3820.2,3819.7,2.61795]
[1717400410736,7.28,3820.6,3819.9,2.61782]
[1717400410922,7.28,3820.6,3820.0,0.04526895]
[1717400411123,2.61713,3821.0,3820.0,0.04526895]
[1717400411374,0.75,3820.8,3819.9,2.61782]
[1717400411670,0.75,3820.8,3820.0,0.04526895]
[1717400412989,2.61732,3820.7,3820.0,0.04526895]
[1717400414554,2.61732,3820.7,3820.1,0.04501775]
[1717400414752,2.61732,3820.7,3819.5,2.61809]
[1717400414960,2.61732,3820.7,3820.2,0.04498024]
[1717400415154,0.336732,3820.6,3819.5,2.61809]
[1717400415397,0.336732,3820.6,3820.3,0.04497965]
[1717400415570,2.61732,3820.7,3819.5,2.61809]
[1717400415731,2.61732,3820.7,3820.4,0.04502391]
[1717400415930,2.61732,3820.7,3819.8,2.61793]
[1717400416272,2.61732,3820.7,3819.9,0.04520886]
[1717400425143,2.61732,3820.7,3820.0,2.61779]
[1717400425407,2.61732,3820.7,3820.0,2.66283997]
[1717400431694,2.61732,3820.7,3820.0,2.68975716]
[1717400432483,2.954052,3820.7,3820.0,2.68975716]
[1717400433269,2.954052,3820.7,3820.0,0.07196716]
[1717400433470,2.61747,3820.5,3820.0,0.07196716]
[1717400433670,2.61747,3820.5,3819.7,2.61799]
[1717400434216,2.61747,3820.5,3819.8,0.07201327]
[1717400434368,3.2159102,3820.5,3819.8,0.07201327]
[1717400437391,3.2159102,3820.5,3819.5,2.61808]
[1717400437592,3.2159102,3820.5,3819.9,0.07203307]
[1717400437800,3.2159102,3820.5,3819.5,2.61808]
[1717400438003,3.2159102,3820.5,3820.0,0.07199484]
[1717400438204,0.58328422,3820.4,3819.5,2.61808]
[1717400438526,2.4573,3820.2,3820.1,0.07195662]
[1717400438712,2.61778,3820.1,3819.2,3.0]
[1717400439109,0.75,3820.0,3819.2,3.0]
[1717400440895,2.61791,3819.9,3819.1,2.61837]
[1717400441116,3.255431,3819.9,3819.1,2.61837]
[1717400444823,3.255431,3819.9,3818.7,2.61863]
[1717400445026,3.255431,3819.9,3818.8,3.0]
[1717400445590,3.255431,3819.9,3818.9,2.61854]
[1717400446549,2.2616,3819.8,3818.9,2.61854]
[1717400448797,2.61802,3819.7,3818.9,2.61854]
[1717400449153,2.61822,3819.4,3818.5,2.6188]
[1717400451159,2.4856,3819.3,3818.5,2.6188]
[1717400451592,0.75,3819.2,3818.5,2.6188]
[1717400451986,2.4856,3819.3,3818.5,2.6188]
[1717400452165,3.2356,3819.3,3818.5,2.6188]
[1717400453411,3.2356,3819.3,3818.6,0.07289696]
[1717400454274,0.585382,3819.2,3818.6,0.07289696]
[1717400454915,0.585382,3819.2,3818.2,3.0]
[1717400455123,2.61835,3819.2,3818.7,0.07048131]
[1717400455276,2.61835,3819.2,3818.2,3.0]
[1717400455478,2.61835,3819.2,3818.8,0.07060403]
[1717400455700,2.61835,3819.2,3818.3,2.61895]
[1717400455898,2.61835,3819.2,3818.9,0.07056578]
[1717400456206,2.61835,3819.2,3819.0,0.07052753]
[1717400456423,2.61835,3819.2,3818.3,2.61895]
[1717400456577,2.61835,3819.2,3819.1,0.07048929]
[1717400456780,2.61835,3819.2,3818.3,2.61895]
[1717400456980,2.61835,3819.2,3819.1,0.07048929]
[1717400457206,3.203745,3819.2,3818.3,2.61895]
[1717400457520,2.61835,3819.2,3819.1,0.07048929]
[1717400457819,2.61835,3819.2,3818.3,2.61895]
[1717400458025,2.61835,3819.2,3819.1,0.07048929]
[1717400458183,2.61835,3819.2,3818.3,2.61895]
[1717400458629,2.61835,3819.2,3818.4,0.07075705]
[1717400459929,2.61835,3819.2,3818.4,0.85275705]
[1717400461431,2.61835,3819.2,3818.5,2.61881]
[1717400461643,2.61835,3819.2,3818.5,2.68952879]
[1717400462140,2.61835,3819.2,3818.6,0.782]
[1717400462485,2.61835,3819.2,3818.7,0.07064228]
[1717400464223,3.36835,3819.2,3818.7,0.07064228]
[1717400467399,3.36835,3819.2,3818.5,3.40081]
[1717400467598,3.36835,3819.2,3818.8,0.07057501]
[1717400467803,3.36835,3819.2,3818.5,3.40081]
[1717400468000,3.36835,3819.2,3818.9,0.07053676]
[1717400468205,4.031945,3819.2,3818.2,5.61903]
[1717400468431,4.031945,3819.2,3819.0,0.07050907]
[1717400468625,4.031945,3819.2,3818.3,8.6389]
[1717400468825,4.031945,3819.2,3819.1,0.07047083]
[1717400469044,4.031945,3819.2,3818.5,0.782]
[1717400469207,4.031945,3819.2,3819.1,0.07047083]
[1717400469403,4.031945,3819.2,3818.3,8.6389]
[1717400469605,4.031945,3819.2,3819.1,0.07047083]
[1717400469805,4.031945,3819.2,3818.3,8.6389]
[1717400470047,4.031945,3819.2,3819.1,0.07047083]
[1717400470219,4.031945,3819.2,3818.3,8.6389]
[1717400470422,3.36835,3819.2,3819.1,0.07047083]
[1717400470624,3.36835,3819.2,3818.3,8.6389]
[1717400470806,3.36835,3819.2,3819.1,0.07047083]
[1717400471003,3.36835,3819.2,3818.3,8.6389]
[1717400471248,0.75,3819.2,3819.1,0.07047083]
[1717400471419,7.28,3819.7,3819.3,2.61821]
[1717400471747,2.3872,3820.1,3819.6,0.782]
[1717400472152,0.75,3820.0,3819.3,2.61821]
[1717400472353,0.75,3820.0,3819.4,0.782]
[1717400472560,0.75,3820.0,3819.6,0.782]
[1717400472715,7.28,3820.2,3819.6,0.782]
[1717400473060,8.03,3820.2,3819.6,0.782]
[1717400473358,7.28,3820.2,3819.6,0.782]
[1717400473931,7.28,3820.2,3819.4,2.2617]
[1717400473932,7.28,3820.2,3819.7,2.61799]
[1717400474957,2.61751,3820.5,3819.7,2.61799]
[1717400475166,0.75,3820.3,3819.7,2.61799]
[1717400475536,0.75,3820.3,3819.8,0.07012663]
[1717400476041,0.75,3820.3,3819.9,0.0700884]
[1717400476246,0.75,3820.3,3819.7,2.61799]
[1717400476446,0.75,3820.3,3820.0,0.07005017]
[1717400476647,0.75,3820.3,3819.7,2.61799]
[1717400476821,0.75,3820.3,3820.1,0.07001194]
[1717400477028,0.75,3820.3,3819.7,2.61799]
[1717400477219,0.75,3820.3,3820.2,0.06997372]
[1717400477461,0.75,3820.3,3819.7,2.61799]
[1717400477656,0.75,3820.3,3820.2,0.06997372]
[1717400477824,0.75,3820.3,3819.7,2.61799]
[1717400478025,0.75,3820.3,3820.2,0.06997372]
[1717400478223,0.75,3820.3,3819.8,0.261799]
[1717400478478,0.75,3820.3,3820.2,0.06981539]
[1717400478676,0.75,3820.3,3819.7,2.61799]
[1717400478828,0.75,3820.3,3820.2,0.06981539]
[1717400479160,0.75,3820.3,3819.7,2.61799]
[1717400479357,0.75,3820.3,3820.2,0.06981539]
[1717400479565,0.75,3820.3,3819.7,2.61799]
[1717400479733,0.75,3820.3,3820.2,0.06981539]
[1717400479935,0.75,3820.3,3819.7,2.61799]
[1717400480155,0.75,3820.3,3820.2,0.06981539]
[1717400480625,0.75,3820.3,3819.7,2.61799]
[1717400480830,0.75,3820.3,3820.2,0.06981539]
[1717400481053,0.75,3820.3,3819.7,2.61799]
[1717400481244,0.75,3820.3,3820.2,0.06981539]
[1717400481544,0.75,3820.3,3819.3,2.61821]
[1717400481756,0.75,3820.3,3820.2,0.06981539]
[1717400481958,0.75,3820.3,3819.4,0.261821]
[1717400482345,0.75,3820.3,3819.5,0.070083]
[1717400483757,2.61767,3820.2,3819.5,0.070083]
[1717400484069,3.36767,3820.2,3819.5,0.070083]
[1717400485432,2.6178,3820.0,3818.9,2.6185]
[1717400485712,2.6178,3820.0,3819.6,0.07004476]
[1717400485839,2.6178,3820.0,3819.0,3.0]
[1717400486033,2.6178,3820.0,3819.7,0.07000653]
[1717400486387,2.61801,3819.7,3818.9,2.6185]
[1717400486534,2.61801,3819.7,3818.5,2.61876]
[1717400486737,2.61814,3819.5,3818.6,7.8563]
[1717400487131,3.36814,3819.5,3818.6,7.8563]
[1717400489263,3.941194,3819.5,3818.6,7.8563]
[1717400492738,2.61836,3819.2,3818.6,7.8563]
[1717400493150,2.4512,3819.1,3818.6,7.8563]
[1717400493982,3.2012,3819.1,3818.6,7.8563]
[1717400495345,2.61851,3819.0,3818.6,7.8563]
[1717400495558,2.61862,3818.8,3818.6,7.8563]
[1717400496884,2.61862,3818.8,3818.7,0.07054727]
[1717400497066,2.61862,3818.8,3818.6,7.8563]
[1717400497457,2.61862,3818.8,3818.7,0.07079009]
[1717400502689,2.61862,3818.8,3818.6,7.8563]
[1717400502857,2.61862,3818.8,3818.7,0.07079009]
[1717400503062,2.61862,3818.8,3818.6,7.8563]
[1717400503263,2.61862,3818.8,3818.7,0.07079009]
[1717400503591,2.61862,3818.8,3818.6,7.8563]
[1717400503961,2.61862,3818.8,3818.7,0.07079009]
[1717400504374,7.0779991,3818.8,3818.6,7.8563]
[1717400504561,0.55,3818.7,3818.6,7.8563]
[1717400515971,2.61862,3818.8,3818.6,7.8563]
[1717400519495,2.61862,3818.8,3818.7,0.07094321]
[1717400521098,7.28,3819.1,3818.7,0.07094321]
[1717400521297,7.28,3819.1,3818.7,0.94196753]
[1717400521508,0.75,3818.9,3818.8,2.4949]
[1717400521666,7.28,3819.9,3819.0,2.61846]
[1717400521667,0.75,3819.7,3819.0,2.61846]
[1717400521868,7.28,3819.9,3819.1,0.59672518]
[1717400522117,0.75,3819.7,3819.1,0.66750219]
[1717400522258,0.75,3819.7,3819.1,0.59672518]
[1717400522462,0.75,3819.7,3819.2,0.07073877]
[1717400522685,0.75,3819.7,3819.2,0.39933116]
[1717400525925,0.75,3819.7,3819.3,2.61827]
[1717400526108,7.28,3819.9,3819.3,2.61827]
[1717400526412,8.03,3819.9,3819.4,0.07066229]
[1717400527312,8.03,3819.9,3819.3,2.61827]
[1717400527524,8.03,3819.9,3819.4,0.43265876]
[1717400527818,0.75,3819.9,3819.4,0.43265876]
[1717400528628,0.75,3819.9,3819.6,2.61806]
[1717400529008,2.61759,3820.3,3819.7,0.07005931]
[1717400529323,3.40059,3820.3,3819.7,0.07005931]
[1717400529524,0.75,3820.1,3819.7,0.62258712]
[1717400531497,0.75,3820.1,3819.7,0.07005931]
[1717400531699,0.75,3820.1,3819.5,2.4045]
[1717400532212,0.75,3820.1,3819.6,0.07009754]
[1717400536627,0.75,3820.1,3819.5,2.4045]
[1717400536829,0.75,3820.1,3819.7,0.07003028]
[1717400537026,0.75,3820.1,3819.6,0.07006851]
[1717400537349,0.75,3820.1,3819.7,0.07003028]
[1717400537758,0.75,3820.1,3819.4,2.61814]
[1717400538049,0.75,3820.1,3819.5,0.07010675]
[1717400543698,0.75,3820.1,3819.5,0.85310675]
[1717400545799,0.75,3820.1,3819.5,0.07010675]
[1717400546025,0.75,3820.1,3819.6,0.34712468]
[1717400546545,0.75,3820.1,3819.7,0.07002498]
[1717400547607,0.75,3820.1,3819.4,2.61814]
[1717400547812,0.75,3820.1,3819.8,0.06998675]
[1717400548143,0.75,3820.1,3819.4,2.61814]
[1717400548341,0.75,3820.1,3819.5,0.07010145]
[1717400549037,1.533,3820.1,3819.5,0.07010145]
[1717400549547,0.5659815,3820.0,3819.5,0.07010145]
[1717400549842,0.5659815,3820.0,3819.4,3.206864]
[1717400550198,0.5659815,3820.0,3819.5,0.07010145]
[1717400550716,0.5659876,3820.0,3819.5,0.07010145]
[1717400551844,0.56597343,3820.0,3819.5,0.07010145]
[1717400552022,3.36778,3820.1,3819.5,0.07010145]
[1717400552926,0.56597571,3820.0,3819.5,0.07010145]
[1717400553936,3.40087,3819.9,3819.0,2.61841]
[1717400554140,3.40087,3819.9,3819.1,7.92560455]
[1717400554343,0.56597571,3819.8,3819.1,7.92560455]
[1717400554547,3.40104,3819.7,3819.1,7.92560455]
[1717400554840,2.3626,3819.6,3819.1,7.92560455]
[1717400561007,0.783,3819.5,3819.1,7.92560455]
[1717400561244,2.61821,3819.4,3819.1,7.92560455]
[1717400561410,0.75,3819.2,3819.1,7.92560455]
[1717400561937,0.75,3819.2,3819.1,7.8553]
[1717400562145,0.75,3819.2,3819.1,7.92573385]
[1717400580253,2.61821,3819.4,3819.1,7.92573385]
[1717400580483,0.75,3819.3,3819.1,7.92573385]
[1717400580854,0.75,3819.3,3819.1,10.98530724]
[1717400581082,0.56605571,3819.6,3819.1,10.98530724]
[1717400581315,0.75,3819.5,3819.1,10.19273385]
[1717400592304,2.61801,3819.7,3819.1,10.19273385]
[1717400592486,3.36801,3819.7,3819.1,10.19273385]
[1717400597107,0.56603336,3819.6,3819.1,10.19273385]
[1717400597622,1.31603336,3819.6,3819.1,10.19273385]
[1717400598332,1.31603336,3819.6,3819.2,1.28112038]
[1717400598732,1.31603336,3819.6,3819.3,0.0681161]
[1717400599397,0.75,3819.6,3819.3,0.0681161]
[1717400599597,1.31603338,3819.6,3819.3,0.0681161]
[1717400600455,1.31603338,3819.6,3819.1,10.1223]
[1717400600605,1.31603338,3819.6,3819.4,0.06807786]
[1717400600805,1.31603338,3819.6,3819.1,10.1223]
[1717400601103,0.75,3819.6,3819.5,0.06803962]
[1717400601434,0.56604089,3819.6,3819.5,0.06803962]
[1717400601738,1.31604089,3819.6,3819.1,11.396377]
[1717400602445,1.31604089,3819.6,3819.2,0.06815434]
[1717400605248,0.783,3819.5,3819.2,0.06815434]
[1717400605451,0.56604089,3819.4,3819.2,0.06815434]
[1717400607241,3.18427479,3819.4,3819.2,0.06815434]
[1717400607442,0.783,3819.3,3819.2,0.06815434]
[1717400607640,1.34905789,3819.3,3819.2,0.06815434]
[1717400607840,1.31605789,3819.3,3819.2,0.06815434]
[1717400608059,0.56605789,3819.3,3819.2,0.86049977]
[1717400608353,9.89798,3819.8,3819.2,0.86049977]
[1717400608559,1.31600406,3819.7,3819.2,0.86049977]
[1717400608855,0.56600406,3819.7,3819.3,1.10022998]
[1717400609467,0.56600406,3819.7,3819.4,0.06809105]
[1717400609762,9.89798,3819.8,3819.4,0.06809105]
[1717400609967,10.64798,3819.8,3819.4,0.06809105]
[1717400610260,0.56599146,3819.7,3819.4,0.06809105]
[1717400610415,0.56599146,3819.7,3819.4,1.19910315]
[1717400611324,9.89798,3819.8,3819.4,1.19910315]
[1717400611727,10.64798,3819.8,3819.4,1.19910315]
[1717400611959,10.64798,3819.8,3819.4,0.06809105]
[1717400612550,0.56600937,3819.7,3819.4,0.06809105]
[1717400612975,0.56600937,3819.7,3819.1,10.1418]
[1717400613148,0.56600937,3819.7,3819.2,0.06816753]
[1717400613936,0.56601898,3819.7,3819.2,0.06816753]
[1717400615298,0.56601652,3819.7,3819.2,1.35101028]
[1717400618995,2.82901652,3819.7,3819.2,0.06816753]
[1717400619296,1.31601652,3819.6,3819.2,0.06816753]
[1717400620063,0.75,3819.6,3819.2,0.06816753]
[1717400620285,1.31602301,3819.6,3819.2,0.06816753]
[1717400620596,2.61815,3819.5,3819.2,0.06816753]
[1717400620801,3.36815,3819.5,3819.2,0.06816753]
[1717400621796,0.783,3819.4,3819.2,0.06816753]
[1717400622609,5.07218,3819.3,3819.2,0.06816753]
[1717400622781,5.63827963,3819.3,3819.1,7.8553]
[1717400622986,1.34909963,3819.2,3819.1,7.8553]
[1717400625611,1.34911881,3819.2,3819.1,7.8553]
[1717400625782,0.56611881,3819.2,3819.1,7.8553]
[1717400625990,1.34911881,3819.2,3819.1,7.8553]
[1717400626518,0.783,3819.2,3819.1,7.8553]
[1717400626681,1.34911712,3819.2,3819.1,7.8553]
[1717400627309,0.783,3819.2,3819.1,7.8553]
[1717400628126,1.34912215,3819.2,3819.1,7.8553]
[1717400628331,0.783,3819.2,3819.1,7.8553]
[1717400628705,1.34912643,3819.2,3819.1,7.8553]
[1717400631214,0.783,3819.2,3819.1,7.8553]
[1717400632625,1.34913812,3819.2,3819.1,7.8553]
[1717400635835,0.783,3819.2,3819.1,7.8553]
[1717400638600,1.89914436,3819.2,3819.1,7.8553]
[1717400638853,2.7354183,3819.2,3819.1,7.8553]
[1717400640043,2.73542172,3819.2,3819.1,7.8553]
[1717400641158,1.95242172,3819.2,3819.1,7.8553]
[1717400641460,2.73542172,3819.2,3819.1,7.8553]
[1717400642922,2.73542172,3819.2,3819.1,7.92373541]
[1717400646040,2.16927394,3819.2,3819.1,7.92373541]
[1717400646240,2.73541321,3819.2,3819.1,7.92373541]
[1717400648942,1.89913927,3819.2,3819.1,7.92373541]
[1717400649632,1.89914077,3819.2,3819.1,7.92373541]
[1717400654064,1.11614077,3819.2,3819.1,7.92373541]
[1717400654243,1.89914077,3819.2,3819.1,7.92373541]
[1717400654577,0.56614077,3819.2,3819.1,7.92373541]
[1717400654867,0.56614077,3819.2,3819.1,11.25578895]
[1717400655028,0.56614077,3819.2,3819.1,10.23253541]
[1717400655232,0.75,3819.5,3819.1,10.23253541]
[1717400655430,0.56606742,3819.6,3819.1,7.92373541]
[1717400655668,1.31606742,3819.6,3819.2,2.3088]
[1717400655874,2.61806,3819.7,3819.3,1.09159399]
[1717400656275,3.36806,3819.7,3819.3,1.09159399]
[1717400663740,3.36806,3819.7,3819.4,2.2532]
[1717400664160,0.75,3819.7,3819.5,0.06814784]